bitfinex/quotes_BTCUSD_20241206
["timestamp","ask_amount","ask_price","bid_price","bid_amount"]
[1733500005176,0.01634254,99510.0,99509.0,0.16858595]
[1733500005387,0.01634254,99510.0,99509.0,0.13981686]
[1733500005604,0.01634254,99510.0,99509.0,0.15281686]
[1733500005825,0.01634254,99510.0,99509.0,0.14381686]
[1733500006035,0.01634254,99510.0,99509.0,0.13981686]
[1733500006466,0.01634254,99510.0,99509.0,0.10903154]
[1733500006671,0.02570407,99510.0,99509.0,0.004]
[1733500007300,0.02570407,99510.0,99509.0,0.013]
[1733500007514,0.02570407,99510.0,99509.0,0.004]
[1733500007721,0.02570407,99510.0,99509.0,0.009]
[1733500007958,0.02570407,99510.0,99501.0,0.01077415]
[1733500007959,0.401972,99509.0,99467.0,0.26779166]
[1733500008202,0.201043,99482.0,99480.0,0.0017314]
[1733500008682,0.02305387,99481.0,99480.0,0.0017314]
[1733500009117,0.00936502,99481.0,99480.0,0.0017314]
[1733500009331,1.5,99493.0,99488.0,0.201028]
[1733500009332,0.02247312,99492.0,99488.0,0.201028]
[1733500009553,1.5,99493.0,99488.0,0.2212308]
[1733500009554,0.02305297,99491.0,99488.0,0.2212308]
[1733500009758,1.5,99493.0,99488.0,0.2212308]
[1733500009759,0.00936412,99490.0,99488.0,0.2212308]
[1733500010015,0.02434719,99489.0,99488.0,0.2212308]
[1733500010255,0.02434719,99489.0,99488.0,0.4452598]
[1733500010447,0.00936412,99489.0,99488.0,0.4452598]
[1733500010658,0.00936412,99489.0,99488.0,9.4452598]
[1733500010894,0.01368885,99500.0,99499.0,0.201007]
[1733500011119,0.01498126,99503.0,99501.0,0.201003]
[1733500011374,0.01498126,99503.0,99502.0,0.023]
[1733500011605,0.01498126,99508.0,99504.0,0.023]
[1733500011829,0.02434351,99507.0,99506.0,0.023]
[1733500012340,0.02434351,99507.0,99506.0,0.12803154]
[1733500012341,0.00936225,99507.0,99506.0,0.12803154]
[1733500012583,0.01634254,99510.0,99507.0,0.19399]
[1733500012823,0.01634254,99510.0,99508.0,0.10503154]
[1733500013040,0.01634254,99510.0,99509.0,0.200986]
[1733500013268,0.01634254,99510.0,99509.0,0.37372777]
[1733500014704,0.01634254,99510.0,99509.0,0.39672777]
[1733500014930,0.01734254,99510.0,99509.0,0.40572777]
[1733500015405,0.01734254,99510.0,99509.0,0.33801754]
[1733500015857,0.01734254,99510.0,99509.0,0.34001754]
[1733500016078,0.01634254,99510.0,99509.0,0.33101754]
[1733500016552,0.01634254,99510.0,99509.0,0.30801754]
[1733500017278,0.03003139,99510.0,99509.0,0.002]
[1733500017521,0.03103139,99510.0,99509.0,0.009]
[1733500017748,0.03103139,99510.0,99509.0,0.011]
[1733500018160,0.04039427,99510.0,99509.0,0.011]
[1733500018397,0.04039427,99510.0,99506.0,0.200991]
[1733500018398,0.02570873,99510.0,99508.0,0.200988]
[1733500018628,0.01734254,99510.0,99509.0,0.12623064]
[1733500018879,0.01734254,99510.0,99509.0,0.10503154]
[1733500019337,0.01634254,99510.0,99509.0,0.10503154]
[1733500019806,0.01634254,99510.0,99509.0,0.10603632]
[1733500020502,0.01634254,99510.0,99509.0,0.11683385]
[1733500021480,0.01734254,99510.0,99509.0,0.12383385]
[1733500021710,0.01634254,99510.0,99509.0,0.11783385]
[1733500021994,0.01634254,99510.0,99509.0,0.11103154]
[1733500022242,0.01634254,99510.0,99509.0,0.11003154]
[1733500022473,0.01634254,99510.0,99509.0,0.10503154]
[1733500022687,0.01634254,99510.0,99509.0,0.11103154]
[1733500023926,0.01634254,99510.0,99509.0,0.10503154]
[1733500024159,0.01634254,99510.0,99509.0,0.10703154]
[1733500024418,0.01634254,99510.0,99509.0,0.10503154]
[1733500024654,0.01368885,99509.0,99505.0,0.200993]
[1733500024897,0.01368885,99505.0,99500.0,0.17761384]
[1733500025122,0.01368885,99505.0,99502.0,0.200999]
[1733500025610,0.01368885,99505.0,99502.0,0.401999]
[1733500025889,0.01368885,99505.0,99502.0,0.200999]
[1733500026123,0.01368885,99501.0,99500.0,0.0017312]
[1733500026570,0.02306919,99501.0,99500.0,0.0017312]
[1733500027834,0.02506919,99501.0,99500.0,0.0017312]
[1733500028375,0.01568885,99501.0,99500.0,0.0017312]
[1733500028654,0.02506919,99501.0,99500.0,0.0017312]
[1733500029075,0.01568885,99501.0,99500.0,0.0017312]
[1733500029496,0.02506919,99501.0,99500.0,0.0017312]
[1733500029710,0.01568885,99501.0,99500.0,0.0017312]
[1733500029920,0.02506948,99501.0,99500.0,0.0017312]
[1733500030142,0.1857949,99501.0,99500.0,0.0017312]
[1733500030378,0.15246966,99501.0,99500.0,0.0017312]
[1733500030599,1.65246966,99501.0,99500.0,0.0017312]
[1733500030842,0.01138081,99501.0,99500.0,0.0017312]
[1733500031077,0.002,99501.0,99500.0,0.10676274]
[1733500031311,0.002,99501.0,99500.0,0.10776763]
[1733500031537,0.002,99501.0,99500.0,0.15874649]
[1733500032223,0.002,99501.0,99500.0,0.24034649]
[1733500032460,0.002,99501.0,99500.0,0.2496085]
[1733500032957,0.002,99501.0,99500.0,0.19862964]
[1733500033207,0.002,99501.0,99500.0,0.11702964]
[1733500033457,0.01368885,99508.0,99501.0,0.201003]
[1733500033695,0.01368885,99508.0,99500.0,0.1180345]
[1733500033696,0.01368885,99508.0,99507.0,0.20099]
[1733500034443,0.01634254,99510.0,99507.0,0.20099]
[1733500034444,0.01634254,99510.0,99507.0,0.50701154]
[1733500034683,0.01634254,99510.0,99509.0,0.200986]
[1733500034908,0.01634254,99510.0,99509.0,0.30601754]
[1733500036045,0.01834254,99510.0,99509.0,0.30601754]
[1733500036723,0.01834254,99510.0,99509.0,0.37691809]
[1733500036945,0.01834254,99510.0,99509.0,0.30601754]
[1733500037167,0.01834254,99510.0,99509.0,0.30901754]
[1733500037374,0.01634254,99510.0,99509.0,0.30901754]
[1733500037594,0.01734254,99510.0,99509.0,0.30601754]
[1733500037842,0.01734254,99510.0,99509.0,0.31201754]
[1733500038067,0.01634254,99510.0,99509.0,0.31201754]
[1733500040497,0.01634254,99510.0,99509.0,0.38341809]
[1733500040770,0.01634254,99510.0,99509.0,0.37741809]
[1733500041031,0.01634254,99510.0,99509.0,0.38141809]
[1733500041285,0.01734254,99510.0,99509.0,0.42961809]
[1733500041506,0.01734254,99510.0,99509.0,0.31001754]
[1733500041735,0.01634254,99510.0,99509.0,0.30601754]
[1733500042220,0.01734254,99510.0,99509.0,0.30601754]
[1733500042464,0.01734254,99510.0,99509.0,0.200986]
[1733500042732,0.01368885,99501.0,99500.0,0.2027362]
[1733500043196,0.01368885,99501.0,99500.0,0.0017312]
[1733500043695,0.0257342,99510.0,99500.0,0.0017312]
[1733500043696,0.01502799,99509.0,99508.0,0.200988]
[1733500043928,0.0327342,99510.0,99509.0,0.001]
[1733500044186,0.0257342,99510.0,99509.0,0.10503154]
[1733500044913,0.01368885,99509.0,99508.0,0.200988]
[1733500045153,0.01668885,99509.0,99508.0,0.200988]
[1733500045601,0.003,99509.0,99508.0,0.200988]
[1733500046290,0.0150293,99519.0,99501.0,0.201003]
[1733500046291,0.03215774,99537.0,99505.0,0.05]
[1733500046530,0.0098862,99528.0,99519.0,0.200965]
[1733500046754,0.0150291,99527.0,99524.0,0.200955]
[1733500046966,0.0150291,99526.0,99516.0,0.200971]
[1733500047234,0.0150291,99525.0,99517.0,0.20097]
[1733500047445,0.0150291,99524.0,99517.0,0.20097]
[1733500047656,0.0150291,99523.0,99517.0,0.20097]
[1733500047866,0.0150291,99522.0,99517.0,0.20097]
[1733500048076,0.0150291,99521.0,99504.0,0.200996]
[1733500048291,0.200966,99519.0,99504.0,0.200996]
[1733500048503,0.0150291,99518.0,99502.0,0.201]
[1733500048748,0.200972,99516.0,99502.0,0.201]
[1733500048964,0.0150291,99515.0,99502.0,0.201]
[1733500049178,0.200972,99516.0,99506.0,0.200992]
[1733500049179,0.0150291,99514.0,99506.0,0.200992]
[1733500049388,0.0150291,99513.0,99501.0,0.00057794]
[1733500049618,0.200972,99516.0,99502.0,0.201]
[1733500049619,0.0150291,99512.0,99502.0,0.201]
[1733500049817,0.0150291,99511.0,99502.0,0.402]
[1733500050043,0.0150291,99510.0,99507.0,0.200989]
[1733500050254,0.001,99516.0,99507.0,0.200989]
[1733500050255,0.0190291,99515.0,99507.0,0.200989]
[1733500050466,0.03548825,99514.0,99507.0,0.200989]
[1733500050680,0.0150291,99513.0,99507.0,0.200989]
[1733500050907,0.0150291,99512.0,99507.0,0.200989]
[1733500051123,0.0150291,99511.0,99507.0,0.200989]
[1733500051357,0.003,99512.0,99507.0,0.200989]
[1733500052043,0.0150291,99511.0,99507.0,0.200989]
[1733500052285,0.0150291,99511.0,99507.0,0.401978]
[1733500052505,0.003,99512.0,99507.0,0.401978]
[1733500052939,0.006,99512.0,99507.0,0.401978]
[1733500053163,0.003,99512.0,99507.0,0.401978]
[1733500053391,0.003,99512.0,99507.0,0.200989]
[1733500053633,0.003,99512.0,99503.0,0.200998]
[1733500053846,0.01503082,99511.0,99503.0,0.401996]
[1733500054050,0.01503082,99511.0,99507.0,0.20099]
[1733500054259,0.003,99512.0,99507.0,0.20099]
[1733500054471,0.01503082,99520.0,99507.0,0.20099]
[1733500054693,0.002,99512.0,99507.0,0.200989]
[1733500054925,0.005,99512.0,99507.0,0.401978]
[1733500055152,0.005,99512.0,99507.0,0.200989]
[1733500055153,0.003,99512.0,99507.0,0.200989]
[1733500055365,0.01503082,99511.0,99501.0,0.00057794]
[1733500055574,0.200992,99507.0,99501.0,0.00057794]
[1733500055785,0.01503082,99510.0,99501.0,0.00057794]
[1733500055786,0.200992,99506.0,99501.0,0.00057794]
[1733500056015,0.21602282,99506.0,99501.0,0.00057794]
[1733500056234,0.05,99502.0,99501.0,0.00057794]
[1733500056482,0.37106236,99502.0,99501.0,0.00057794]
[1733500056699,1.87106236,99502.0,99501.0,0.00057794]
[1733500057131,1.85603154,99502.0,99501.0,0.00057794]
[1733500057571,1.5,99502.0,99501.0,0.00057794]
[1733500057789,0.01053796,99506.0,99501.0,0.00057794]
[1733500057790,0.001,99506.0,99501.0,0.00057794]
[1733500058006,0.002,99506.0,99502.0,0.401999]
[1733500058219,0.00939045,99505.0,99502.0,0.401999]
[1733500058439,0.00939045,99504.0,99502.0,0.401999]
[1733500058667,0.00939045,99503.0,99502.0,0.401999]
[1733500060297,0.00939045,99503.0,99501.0,0.00057794]
[1733500060523,0.00939045,99502.0,99501.0,0.00057794]
[1733500061654,0.02441494,99502.0,99501.0,0.00057794]
[1733500061878,0.02841494,99502.0,99501.0,0.00057794]
[1733500062088,0.01339045,99502.0,99501.0,0.00057794]
[1733500062329,0.00939045,99502.0,99501.0,0.00057794]
[1733500062796,0.01839045,99502.0,99501.0,0.00057794]
[1733500063051,0.01839045,99502.0,99501.0,0.00047757]
[1733500063304,0.02339045,99502.0,99501.0,0.00047757]
[1733500063527,0.01339045,99502.0,99501.0,0.00047757]
[1733500063985,0.01439045,99502.0,99501.0,0.00047757]
[1733500064459,0.01339045,99502.0,99501.0,0.04090035]
[1733500064682,0.01502449,99519.0,99501.0,0.04090035]
[1733500064900,0.02441234,99518.0,99515.0,0.200974]
[1733500065121,0.02441234,99517.0,99515.0,0.200974]
[1733500065356,0.00938785,99516.0,99515.0,0.200974]
[1733500065572,0.00938785,99516.0,99513.0,0.200978]
[1733500065791,0.00938785,99515.0,99513.0,0.200978]
[1733500066000,0.01502449,99528.0,99510.0,0.06038769]
[1733500066211,0.01502449,99527.0,99519.0,0.200966]
[1733500066463,0.01502449,99526.0,99519.0,0.200966]
[1733500066681,0.01564496,99538.0,99519.0,0.200966]
[1733500066682,0.01502449,99525.0,99519.0,0.200966]
[1733500066864,0.01502449,99524.0,99519.0,0.2411602]
[1733500067074,0.01111807,99520.0,99519.0,0.200966]
[1733500067281,0.01111807,99520.0,99519.0,0.35599754]
[1733500067282,0.0017314,99520.0,99519.0,0.35599754]
[1733500067483,0.0027314,99520.0,99519.0,0.35599754]
[1733500067637,0.0027314,99520.0,99519.0,0.43859754]
[1733500068062,0.0047314,99520.0,99519.0,0.43859754]
[1733500068676,0.0027314,99520.0,99519.0,0.43859754]
[1733500068885,0.0027314,99520.0,99519.0,0.52827968]
[1733500069091,0.0027314,99520.0,99519.0,0.43859754]
[1733500069298,0.0017314,99520.0,99519.0,0.5302782]
[1733500069501,0.0027314,99520.0,99519.0,0.5302782]
[1733500069926,0.0017314,99520.0,99519.0,0.5302782]
[1733500070145,0.0027314,99520.0,99519.0,0.5392782]
[1733500070369,0.0037314,99520.0,99519.0,0.44959754]
[1733500070588,0.0017314,99520.0,99519.0,0.43859754]
[1733500070804,0.0037314,99520.0,99519.0,0.44759754]
[1733500071010,0.0027314,99520.0,99519.0,0.44959754]
[1733500071217,0.0037314,99520.0,99519.0,0.44959754]
[1733500071426,0.0027314,99520.0,99519.0,0.44759754]
[1733500071609,0.0037314,99520.0,99519.0,0.44759754]
[1733500071862,0.0037314,99520.0,99519.0,0.44959754]
[1733500072306,0.0027314,99520.0,99519.0,0.43859754]
[1733500072527,0.0037314,99520.0,99519.0,0.46972428]
[1733500072995,0.0027314,99520.0,99519.0,0.46072428]
[1733500073253,0.0027314,99520.0,99519.0,0.44059754]
[1733500073474,0.0037314,99520.0,99519.0,0.39959754]
[1733500073961,0.0037314,99520.0,99519.0,0.44959754]
[1733500074141,0.0027314,99520.0,99519.0,0.43859754]
[1733500074352,0.0027314,99520.0,99519.0,0.43959754]
[1733500074798,0.0027314,99520.0,99519.0,0.43859754]
[1733500075221,0.0027314,99520.0,99519.0,0.43959754]
[1733500075434,0.0037314,99520.0,99519.0,0.44659754]
[1733500075649,0.0037314,99520.0,99519.0,0.44559754]
[1733500075872,0.0027314,99520.0,99519.0,0.43859754]
[1733500076078,0.0027314,99520.0,99519.0,0.44559754]
[1733500076079,0.0037314,99520.0,99519.0,0.44559754]
[1733500076292,0.0037314,99520.0,99519.0,0.43859754]
[1733500076505,0.0027314,99520.0,99519.0,0.38859754]
[1733500076737,0.0037314,99520.0,99519.0,0.44559754]
[1733500077144,0.0037314,99520.0,99519.0,0.44659754]
[1733500077592,0.0037314,99520.0,99519.0,0.44559754]
[1733500078060,0.0037314,99520.0,99519.0,0.291566]
[1733500078774,0.0037314,99520.0,99519.0,0.341566]
[1733500079241,0.0037314,99520.0,99519.0,0.208966]
[1733500080439,0.0037314,99520.0,99519.0,0.008]
[1733500080711,0.0037314,99520.0,99519.0,0.208966]
[1733500080959,0.0037314,99520.0,99519.0,0.2298636]
[1733500082168,0.0037314,99520.0,99519.0,0.208966]
[1733500083077,0.0037314,99520.0,99519.0,0.31399754]
[1733500085172,0.0037314,99520.0,99519.0,0.36399754]
[1733500086640,0.0037314,99520.0,99519.0,0.31399754]
[1733500086886,0.0037314,99520.0,99519.0,0.208966]
[1733500087138,0.0037314,99520.0,99519.0,0.258966]
[1733500090441,0.0037314,99520.0,99519.0,0.36399754]
[1733500091682,0.0037314,99520.0,99519.0,0.44479754]
[1733500091877,0.0037314,99520.0,99519.0,0.49089754]
[1733500094036,0.0037314,99520.0,99519.0,0.51389754]
[1733500094534,0.0037314,99520.0,99519.0,0.52671739]
[1733500094990,0.01331292,99550.0,99539.0,0.200926]
[1733500095212,0.01331292,99550.0,99539.0,0.30595754]
[1733500095213,0.01778506,99540.0,99539.0,0.30595754]
[1733500095592,0.03283008,99540.0,99539.0,0.30595754]
[1733500096168,0.02336306,99540.0,99539.0,0.30595754]
[1733500096408,0.0064434,99540.0,99539.0,0.50065754]
[1733500097058,0.00752205,99556.0,99539.0,0.50065754]
[1733500097059,0.0150441,99556.0,99555.0,0.331293]
[1733500097279,0.009925,99579.0,99559.0,0.250885]
[1733500097500,0.01567243,99595.0,99559.0,0.35591654]
[1733500097725,0.01567243,99595.0,99559.0,0.42691654]
[1733500098214,0.00750711,99594.0,99559.0,0.65971654]
[1733500098446,0.05592,99600.0,99559.0,0.65971654]
[1733500098447,4e-07,99560.0,99559.0,0.67936609]
[1733500099131,0.05592,99600.0,99559.0,0.67936609]
[1733500099132,0.00750653,99596.0,99569.0,0.200865]
[1733500099338,0.00750653,99595.0,99569.0,0.45469654]
[1733500099571,0.00750653,99594.0,99569.0,0.45469654]
[1733500099790,0.00750653,99593.0,99569.0,0.45469654]
[1733500100026,0.00937333,99592.0,99569.0,0.45469654]
[1733500100236,0.00937333,99591.0,99569.0,0.45486957]
[1733500100460,0.0018663,99570.0,99569.0,0.52944403]
[1733500100897,0.0008663,99570.0,99569.0,0.52044403]
[1733500101174,0.0008663,99570.0,99569.0,0.52944403]
[1733500101175,0.0018663,99570.0,99569.0,0.52944403]
[1733500102347,0.0008663,99570.0,99569.0,0.43586957]
[1733500102801,0.0018663,99570.0,99569.0,0.44486957]
[1733500103047,0.00936415,99593.0,99574.0,0.05]
[1733500103288,0.00936415,99593.0,99570.0,8.9991337]
[1733500103289,0.00748155,99593.0,99570.0,8.9991337]
[1733500103539,0.200823,99590.0,99571.0,0.200861]
[1733500103773,0.00748001,99589.0,99571.0,0.200861]
[1733500104003,1.5,99588.0,99571.0,0.401722]
[1733500104227,0.00748001,99587.0,99573.0,0.401714]
[1733500104436,0.0098843,99594.0,99575.0,0.200853]
[1733500104685,0.00747866,99593.0,99575.0,0.30588454]
[1733500105138,0.00747866,99592.0,99575.0,0.30588454]
[1733500105350,0.00747866,99593.0,99575.0,0.200853]
[1733500105564,0.00747866,99592.0,99575.0,0.200853]
[1733500105789,0.00747866,99593.0,99575.0,0.200853]
[1733500106002,0.00747866,99592.0,99575.0,0.200853]
[1733500106222,0.200822,99591.0,99575.0,0.200853]
[1733500106465,0.00481996,99576.0,99571.0,0.200861]
[1733500106703,0.00481996,99576.0,99575.0,0.200853]
[1733500106953,0.01216601,99576.0,99575.0,0.200853]
[1733500107185,0.01216601,99576.0,99575.0,0.204853]
[1733500107410,0.01216601,99576.0,99570.0,9.0491337]
[1733500107411,0.01216601,99576.0,99570.0,8.9991337]
[1733500107653,0.00934556,99575.0,99570.0,8.9991337]
[1733500107896,0.00281996,99576.0,99570.0,9.1999967]
[1733500107897,0.00934556,99574.0,99570.0,9.1999967]
[1733500108115,0.00481996,99576.0,99570.0,8.9991337]
[1733500108353,0.00934559,99575.0,99570.0,8.9991337]
[1733500108596,0.00934559,99574.0,99570.0,8.9991337]
[1733500108816,0.00481996,99576.0,99570.0,8.9991337]
[1733500109028,0.00934559,99575.0,99570.0,8.9991337]
[1733500109243,0.00934559,99574.0,99570.0,8.9991337]
[1733500109463,0.00281996,99576.0,99575.0,0.200853]
[1733500109909,0.00481996,99576.0,99575.0,0.200853]
[1733500110127,0.00281996,99576.0,99575.0,0.200853]
[1733500110588,0.00481996,99576.0,99575.0,0.200853]
[1733500110822,0.00281996,99576.0,99575.0,0.200853]
[1733500111088,0.00781996,99576.0,99575.0,0.200853]
[1733500111512,0.01716605,99576.0,99575.0,0.200853]
[1733500112154,0.01716605,99576.0,99571.0,0.200861]
[1733500112363,0.00934609,99575.0,99571.0,0.200861]
[1733500112571,0.00281996,99576.0,99575.0,0.200853]
[1733500112769,0.01516748,99576.0,99570.0,8.9991337]
[1733500112990,0.00934752,99575.0,99570.0,8.9991337]
[1733500113206,0.00934752,99575.0,99572.0,0.200859]
[1733500113426,0.00934752,99574.0,99572.0,0.200859]
[1733500113635,0.00934911,99573.0,99572.0,0.200859]
[1733500114077,0.00481996,99576.0,99571.0,0.200861]
[1733500114308,0.00935029,99575.0,99571.0,0.200861]
[1733500114522,0.003,99575.0,99573.0,0.200857]
[1733500114987,0.003,99575.0,99574.0,0.10603576]
[1733500115205,0.003,99575.0,99574.0,0.23553576]
[1733500115419,0.003,99575.0,99574.0,0.23453154]
[1733500115641,0.00281996,99576.0,99575.0,0.250853]
[1733500115857,0.00281996,99576.0,99575.0,0.35588454]
[1733500116080,0.00279086,99576.0,99575.0,0.35588454]
[1733500116290,0.0017304,99580.0,99579.0,0.250845]
[1733500116503,0.0017304,99580.0,99579.0,0.35587654]
[1733500117596,0.0017304,99580.0,99579.0,0.35987654]
[1733500118621,0.0017304,99580.0,99579.0,0.43997654]
[1733500119030,0.0017304,99580.0,99579.0,0.43597654]
[1733500119454,0.0017304,99580.0,99579.0,0.43997654]
[1733500119663,0.0027304,99580.0,99579.0,0.44897654]
[1733500119879,0.0017304,99580.0,99579.0,0.43997654]
[1733500120339,0.0027304,99580.0,99579.0,0.44897654]
[1733500120565,0.0027304,99580.0,99579.0,0.46182161]
[1733500121577,0.0027304,99580.0,99579.0,0.48482161]
[1733500122662,0.0027304,99580.0,99579.0,0.63482161]
[1733500124217,4e-07,99580.0,99579.0,0.68482161]
[1733500126014,4e-07,99580.0,99579.0,0.11803154]
[1733500126253,0.0318925,99580.0,99579.0,0.013]
[1733500126688,0.04390299,99580.0,99579.0,0.013]
[1733500126899,0.04390259,99580.0,99573.0,0.200857]
[1733500127106,0.0318921,99579.0,99574.0,0.10503154]
[1733500127333,0.0318921,99578.0,99570.0,8.9991337]
[1733500127541,0.20086,99572.0,99570.0,8.9991337]
[1733500127750,0.0318921,99571.0,99570.0,9.0000001]
[1733500128375,0.04390474,99571.0,99570.0,9.0000001]
[1733500130306,0.08650474,99571.0,99570.0,9.0000001]
[1733500130756,0.08750474,99571.0,99570.0,9.0000001]
[1733500131247,0.08750474,99571.0,99570.0,8.9773958]
[1733500131248,0.19790474,99571.0,99570.0,8.9773958]
[1733500131466,0.04490474,99571.0,99570.0,8.9773958]
[1733500131910,0.25076574,99571.0,99570.0,8.9773958]
[1733500132126,0.24576574,99571.0,99570.0,8.9773958]
[1733500132364,0.24476574,99571.0,99570.0,8.9773958]
[1733500132595,0.24776574,99571.0,99570.0,8.9773958]
[1733500133326,0.32987611,99571.0,99570.0,8.9773958]
[1733500133535,0.24776574,99571.0,99570.0,8.9773958]
[1733500133973,0.25376574,99571.0,99570.0,8.9783958]
[1733500134196,0.24476574,99571.0,99570.0,8.9773958]
[1733500134606,0.24976574,99571.0,99570.0,8.9773958]
[1733500134837,0.04390474,99571.0,99570.0,8.9773958]
[1733500135077,0.0318921,99571.0,99570.0,8.9773958]
[1733500135310,0.0378921,99571.0,99570.0,8.9773958]
[1733500135541,0.04350785,99571.0,99570.0,8.9773958]
[1733500135751,0.04086537,99571.0,99570.0,8.9773958]
[1733500135967,0.24172637,99571.0,99570.0,8.9773958]
[1733500136176,0.23872637,99571.0,99570.0,8.9773958]
[1733500136492,0.02587506,99571.0,99570.0,8.9773958]
[1733500139933,0.01987506,99571.0,99570.0,8.9773958]
[1733500140150,0.01687506,99571.0,99570.0,8.9773958]
[1733500140366,0.02387506,99571.0,99570.0,8.9773958]
[1733500140584,0.01987506,99571.0,99570.0,8.9773958]
[1733500140814,0.02387506,99571.0,99570.0,8.9773958]
[1733500141243,0.01987506,99571.0,99570.0,8.9773958]
[1733500141467,0.02387506,99571.0,99570.0,8.9773958]
[1733500141670,0.22473606,99571.0,99570.0,8.9773958]
[1733500141878,0.22073606,99571.0,99570.0,8.9773958]
[1733500142292,0.21773606,99571.0,99570.0,8.9773958]
[1733500142501,0.22073606,99571.0,99570.0,8.9773958]
[1733500142961,0.21803606,99571.0,99570.0,8.9773958]
[1733500143176,0.02117506,99571.0,99570.0,8.9773958]
[1733500143401,0.02417506,99571.0,99570.0,8.9773958]
[1733500144112,0.01666894,99571.0,99570.0,8.9773958]
[1733500144312,0.0073,99571.0,99570.0,8.9773958]
[1733500144951,0.0003,99571.0,99570.0,8.9773958]
[1733500145157,0.0013,99571.0,99570.0,8.9773958]
[1733500145804,0.0003,99571.0,99570.0,8.9773958]
[1733500146020,0.0013,99571.0,99570.0,8.9773958]
[1733500146443,0.0003,99571.0,99570.0,8.9773958]
[1733500146883,0.0023,99571.0,99570.0,8.9773958]
[1733500147120,0.0013,99571.0,99570.0,8.9773958]
[1733500147551,0.0013,99571.0,99570.0,8.9783958]
[1733500147774,0.0013,99571.0,99570.0,8.9773958]
[1733500148019,0.0003,99571.0,99570.0,8.9783958]
[1733500148491,0.00878885,99571.0,99570.0,8.9783958]
[1733500148706,0.01066084,99571.0,99570.0,8.9783958]
[1733500148929,0.00966084,99571.0,99570.0,8.9783958]
[1733500149362,0.00966084,99571.0,99570.0,8.9773958]
[1733500149363,0.02014969,99571.0,99570.0,8.9773958]
[1733500149582,0.32518123,99571.0,99570.0,8.9773958]
[1733500149767,0.42707615,99571.0,99570.0,8.9783958]
[1733500149980,0.44106339,99571.0,99570.0,8.9773958]
[1733500150200,0.33616847,99571.0,99570.0,8.9773958]
[1733500150414,0.35715018,99571.0,99570.0,8.9773958]
[1733500150624,0.34216847,99571.0,99570.0,8.9773958]
[1733500150833,0.34217923,99571.0,99570.0,8.9773958]
[1733500151050,0.44707415,99571.0,99570.0,8.9773958]
[1733500151267,0.43907415,99571.0,99570.0,8.9773958]
[1733500151702,0.33817923,99571.0,99570.0,8.9773958]
[1733500152347,0.33417923,99571.0,99570.0,8.9773958]
[1733500152560,0.34117923,99571.0,99570.0,8.9783958]
[1733500152776,1.88311347,99571.0,99570.0,8.9783958]
[1733500153234,1.87811347,99571.0,99570.0,8.9783958]
[1733500153460,1.87111347,99571.0,99570.0,8.9773958]
[1733500153662,2.01630839,99571.0,99570.0,8.71351552]
[1733500153896,2.01632167,99571.0,99570.0,8.71351552]
[1733500154109,2.01632167,99571.0,99570.0,8.71251552]
[1733500154110,1.90442675,99571.0,99570.0,8.71251552]
[1733500154540,1.91142675,99571.0,99570.0,8.71351552]
[1733500154773,1.91542675,99571.0,99570.0,8.71451552]
[1733500155032,1.89242675,99571.0,99570.0,8.71451552]
[1733500155255,1.89242675,99571.0,99570.0,8.71351552]
[1733500155256,0.37812675,99571.0,99570.0,8.71351552]
[1733500155731,0.38212675,99571.0,99570.0,8.71451552]
[1733500156361,0.37512675,99571.0,99570.0,8.71351552]
[1733500156580,0.38212675,99571.0,99570.0,8.71451552]
[1733500157669,1.88212675,99571.0,99570.0,8.71451552]
[1733500159606,1.88212675,99571.0,99570.0,8.29891797]
[1733500160303,1.8626399,99571.0,99570.0,8.29891797]
[1733500160514,1.8821981,99571.0,99570.0,8.29891797]
[1733500160733,1.7321981,99571.0,99570.0,8.42581797]
[1733500160953,0.05520749,99571.0,99570.0,8.42581797]
[1733500161161,0.02818152,99571.0,99570.0,8.42581797]
[1733500161779,0.02418152,99571.0,99570.0,8.42481797]
[1733500162012,0.02818152,99571.0,99570.0,8.42581797]
[1733500162438,0.01718152,99571.0,99570.0,8.42381797]
[1733500162646,0.01718152,99571.0,99570.0,8.42481797]
[1733500162852,0.02718152,99571.0,99570.0,8.42481797]
[1733500163062,0.02718152,99571.0,99570.0,8.42381797]
[1733500163063,0.02118152,99571.0,99570.0,8.42381797]
[1733500163271,0.02118152,99571.0,99570.0,8.42481797]
[1733500163272,0.02718152,99571.0,99570.0,8.42481797]
[1733500163482,0.0178074,99571.0,99570.0,8.42481797]
[1733500163725,0.0362029,99571.0,99570.0,8.42381797]
[1733500163917,0.02219028,99571.0,99570.0,8.42381797]
[1733500164336,0.02619028,99571.0,99570.0,8.42381797]
[1733500164570,0.0412029,99571.0,99570.0,8.42381797]
[1733500164756,0.02219028,99571.0,99570.0,8.42381797]
[1733500165380,0.02519028,99571.0,99570.0,8.42381797]
[1733500165593,0.18690678,99572.0,99570.0,8.42381797]
[1733500166004,0.003,99571.0,99570.0,8.42381797]
[1733500167560,0.004,99571.0,99570.0,8.42381797]
[1733500167997,0.003,99571.0,99570.0,8.42381797]
[1733500169381,0.01501262,99579.0,99570.0,8.42381797]
[1733500169603,0.21585962,99578.0,99570.0,8.42381797]
[1733500169824,0.01501262,99577.0,99570.0,8.42381797]
[1733500170080,0.01501262,99576.0,99570.0,8.42381797]
[1733500170295,0.01501262,99575.0,99570.0,8.42581797]
[1733500170513,0.01501262,99575.0,99570.0,8.42381797]
[1733500170958,0.01501262,99574.0,99570.0,8.42381797]
[1733500171158,0.01501262,99577.0,99570.0,8.62468097]
[1733500171374,0.01501262,99576.0,99570.0,8.42381797]
[1733500171653,0.01601262,99575.0,99570.0,8.42381797]
[1733500171835,0.001,99575.0,99570.0,8.42381797]
[1733500172104,0.01501262,99576.0,99570.0,8.42381797]
[1733500172322,0.001,99577.0,99576.0,0.05]
[1733500172540,0.001,99577.0,99576.0,0.330851]
[1733500173863,0.0017328,99580.0,99578.0,0.05]
[1733500174090,0.0017328,99580.0,99579.0,0.200845]
[1733500174308,0.01500286,99594.0,99580.0,0.1288]
[1733500174527,0.01500286,99595.0,99591.0,0.20082]
[1733500174714,0.01500286,99595.0,99590.0,0.05]
[1733500174715,0.0098625,99596.0,99590.0,0.05]
[1733500174941,0.0005,99598.0,99590.0,0.05]
[1733500175193,0.0005,99598.0,99595.0,0.200812]
[1733500175433,0.01500286,99603.0,99594.0,0.05]
[1733500175434,0.01149616,99603.0,99594.0,0.05]
[1733500175641,0.0116866,99610.0,99596.0,0.200811]
[1733500176073,0.0017314,99610.0,99596.0,0.200811]
[1733500176292,0.0017314,99610.0,99597.0,0.200809]
[1733500176515,0.0017314,99610.0,99603.0,0.1288]
[1733500176953,0.0017314,99610.0,99603.0,0.2019207]
[1733500177206,0.00179633,99604.0,99603.0,0.2019207]